bitfinex/quotes_BTCUSD_20251021
["timestamp","ask_amount","ask_price","bid_price","bid_amount"]
[1761031896366,0.0002,108280.0,108270.0,0.22090565]
[1761031896576,0.00029155,108280.0,108270.0,0.87378028]
[1761031897014,0.00099682,108280.0,108270.0,0.80478028]
[1761031899709,0.00099682,108280.0,108270.0,0.80578028]
[1761031900441,0.00099682,108280.0,108270.0,0.68966028]
[1761031900641,0.00099682,108280.0,108270.0,0.80678028]
[1761031900872,0.00099682,108280.0,108270.0,0.8345486]
[1761031901276,0.00099682,108280.0,108270.0,0.8335486]
[1761031901760,0.00099682,108280.0,108270.0,0.8345486]
[1761031902193,0.00099682,108280.0,108270.0,0.42817604]
[1761031902374,0.00099682,108280.0,108270.0,0.8345486]
[1761031904468,0.00099682,108280.0,108270.0,0.42817604]
[1761031904673,0.00099682,108280.0,108270.0,0.8345486]
[1761031904881,0.00099682,108280.0,108270.0,0.79398554]
[1761031909295,0.00099682,108280.0,108270.0,0.67786554]
[1761031909502,0.00099682,108280.0,108270.0,0.79398554]
[1761031909691,0.00099682,108280.0,108270.0,0.67786554]
[1761031909891,0.00099682,108280.0,108270.0,0.76621722]
[1761031910139,0.00099682,108280.0,108270.0,0.33354367]
[1761031910340,0.00099682,108280.0,108270.0,0.35984466]
[1761031911770,0.00099682,108280.0,108270.0,0.76621722]
[1761031912492,0.00099682,108280.0,108270.0,0.35984466]
[1761031912651,0.00099682,108280.0,108270.0,0.76621722]
[1761031912845,0.00099682,108280.0,108270.0,0.35984466]
[1761031914202,0.00099682,108280.0,108270.0,0.76584673]
[1761031914680,0.00099682,108280.0,108270.0,0.85566574]
[1761031914856,0.18465598,108310.0,108290.0,0.18468926]
[1761031914996,0.19330095,108310.0,108290.0,0.30076926]
[1761031915205,0.00864497,108310.0,108300.0,0.1846722]
[1761031916715,0.34864497,108310.0,108300.0,0.1846722]
[1761031919253,0.34864497,108310.0,108300.0,0.1156722]
[1761031919466,0.34864497,108310.0,108300.0,0.13413942]
[1761031922216,0.34864497,108310.0,108300.0,0.22395843]
[1761031922410,0.34864497,108310.0,108300.0,0.20549121]
[1761031922629,0.34970247,108310.0,108300.0,0.20549121]
[1761031925828,0.00970247,108310.0,108300.0,0.20549121]
[1761031926042,0.0010575,108310.0,108300.0,0.20549121]
[1761031926315,0.0010575,108310.0,108300.0,0.16849121]
[1761031926466,0.0010575,108310.0,108300.0,0.18695843]
[1761031930962,0.0010575,108310.0,108300.0,0.27469008]
[1761031931111,0.0010575,108310.0,108300.0,0.28398648]
[1761031931513,0.0010575,108310.0,108300.0,0.23243711]
[1761031931918,0.0010575,108310.0,108300.0,0.63843918]
[1761031933048,0.0010575,108310.0,108300.0,0.23243711]
[1761031933295,0.0010575,108310.0,108300.0,0.23343711]
[1761031933663,0.0010575,108310.0,108300.0,0.23443711]
[1761031934330,0.0010575,108310.0,108300.0,0.71848815]
[1761031936579,0.0010575,108310.0,108300.0,0.23443711]
[1761031937866,0.0010575,108310.0,108300.0,0.64043918]
[1761031938198,0.0010575,108310.0,108300.0,0.23443711]
[1761031946991,3.0,108340.0,108330.0,0.18461934]
[1761031947119,0.00879034,108340.0,108330.0,0.30065934]
[1761031947699,0.00014867,108340.0,108330.0,0.30065934]
[1761031948257,0.00879101,108340.0,108330.0,0.30065934]
[1761031949498,0.34879101,108340.0,108330.0,0.25665934]
[1761031950086,0.53339503,108340.0,108330.0,0.11604]
[1761031950293,0.53339503,108340.0,108330.0,0.30066106]
[1761031950705,0.34879101,108340.0,108330.0,0.30066106]
[1761031951120,0.53339503,108340.0,108330.0,0.30066106]
[1761031952100,0.34879101,108340.0,108330.0,0.30066106]
[1761031952352,0.52985261,108340.0,108330.0,0.11604]
[1761031952517,0.52957935,108340.0,108330.0,0.30066106]
[1761031952706,0.3460324,108340.0,108330.0,0.30066106]
[1761031954222,0.3460324,108340.0,108330.0,0.29746156]
[1761031956717,0.3460324,108340.0,108330.0,0.25346156]
[1761031957347,0.0060324,108340.0,108330.0,0.34328057]
[1761031957677,0.0060324,108340.0,108330.0,0.30066106]
[1761031959386,0.0060324,108340.0,108330.0,0.39048007]
[1761031959873,0.00105707,108340.0,108330.0,0.39048007]
[1761031960281,0.38098222,108360.0,108340.0,0.18460402]
[1761031960481,0.45674285,108360.0,108340.0,0.18460402]
[1761031960824,0.00035227,108350.0,108340.0,0.18460402]
[1761031962271,0.34035227,108350.0,108340.0,0.18460402]
[1761031963710,0.34035227,108350.0,108340.0,0.15160402]
[1761031963908,0.34035227,108350.0,108340.0,0.17006442]
[1761031964336,0.34900801,108350.0,108340.0,0.17006442]
[1761031968119,0.00900801,108350.0,108340.0,0.17006442]
[1761031968326,0.34900801,108350.0,108340.0,0.17006442]
[1761031971005,0.00900801,108350.0,108340.0,0.13806442]
[1761031972469,0.00035227,108350.0,108340.0,0.13806442]
[1761031975163,0.00035227,108350.0,108340.0,0.20942303]
[1761031977992,0.00035227,108350.0,108340.0,0.14042303]
[1761031978187,0.00035227,108350.0,108340.0,0.15888343]
[1761031983158,0.00035227,108350.0,108340.0,0.27492343]
[1761031983368,0.00035227,108350.0,108340.0,0.25646303]
[1761031985075,0.00035227,108350.0,108340.0,0.20585901]
[1761031985295,0.00035227,108350.0,108340.0,0.39046303]
[1761031986404,0.00035227,108350.0,108340.0,0.41821769]
[1761031987022,0.19378119,108370.0,108350.0,0.18458698]
[1761031987219,0.2024374,108370.0,108350.0,0.18458698]
[1761031987792,0.1974374,108370.0,108350.0,0.18458698]
[1761031988186,0.34865621,108370.0,108360.0,0.18456995]
[1761031989310,0.00865621,108370.0,108360.0,0.39042896]
[1761031989509,0.00865621,108370.0,108360.0,0.79598083]
[1761031989799,0.00865621,108370.0,108360.0,0.41817776]
[1761031990086,0.18453612,108380.0,108360.0,0.30213596]
[1761031990286,0.18453612,108380.0,108360.0,0.30060625]
[1761031990287,0.18468467,108380.0,108360.0,0.30060625]
[1761031990616,0.18468467,108380.0,108360.0,0.30160625]
[1761031990939,0.52468467,108380.0,108360.0,0.30160625]
[1761031991142,0.52468467,108380.0,108360.0,0.001]
[1761031991344,0.52468467,108380.0,108360.0,0.11708]
[1761031991553,0.52455292,108370.0,108360.0,0.001]
[1761031991952,0.52455292,108370.0,108350.0,0.30066698]
[1761031992526,0.52455292,108370.0,108360.0,0.001]
[1761031992727,0.00035223,108360.0,108350.0,0.30066698]
[1761031992919,0.00035223,108360.0,108350.0,0.18458698]
[1761031993124,0.00035223,108360.0,108350.0,0.30066698]
[1761031993483,0.00035223,108360.0,108350.0,0.30166698]
[1761031993716,0.00035223,108360.0,108350.0,0.18558698]
[1761031993959,0.00035223,108360.0,108350.0,0.30066698]
[1761031994465,0.00035223,108360.0,108350.0,0.29566698]
[1761031995286,0.00035223,108360.0,108350.0,0.29666698]
[1761031995437,0.00035223,108360.0,108350.0,0.29566698]
[1761031995819,0.00035223,108360.0,108350.0,0.29666698]
[1761031999080,0.52492218,108360.0,108350.0,0.001]
[1761031999610,0.50492218,108360.0,108350.0,0.001]
[1761031999814,3.50492218,108360.0,108350.0,0.001]
[1761032000012,0.34,108340.0,108330.0,0.3017928]
[1761032000921,0.34,108340.0,108330.0,0.00109303]
[1761032001120,0.52460402,108340.0,108330.0,0.13617051]
[1761032001328,0.52460402,108340.0,108330.0,0.32079157]
[1761032001509,0.52460402,108340.0,108330.0,0.11770841]
[1761032001716,0.52460402,108340.0,108330.0,0.13617051]
[1761032002990,0.52460402,108340.0,108330.0,0.00158841]
[1761032003233,0.52460402,108340.0,108330.0,0.11770841]
[1761032003461,0.52460402,108340.0,108330.0,0.00158841]
[1761032003675,3.52460402,108340.0,108330.0,0.00158841]
[1761032007424,3.55236795,108340.0,108330.0,0.00158841]
[1761032009236,3.56685012,108340.0,108330.0,0.00158841]
[1761032010412,0.56685012,108340.0,108330.0,0.00158841]
[1761032010794,0.01448217,108340.0,108330.0,0.18620947]
[1761032011193,0.34,108340.0,108330.0,0.30232947]
[1761032011592,0.34,108340.0,108330.0,0.11770841]
[1761032011733,0.52460402,108340.0,108330.0,0.11770841]
[1761032012122,0.18462106,108330.0,108320.0,0.02775972]
[1761032012329,0.52462106,108330.0,108320.0,0.00014867]
[1761032017742,0.52462106,108330.0,108320.0,0.00085337]
[1761032020354,0.34,108330.0,108320.0,0.18549147]
[1761032020555,0.34,108330.0,108320.0,0.20395528]
[1761032020759,0.34,108330.0,108320.0,0.18549147]
[1761032022550,0.34,108330.0,108320.0,0.27531048]
[1761032022929,0.34,108330.0,108320.0,0.30307053]
[1761032024565,0.52462106,108330.0,108320.0,0.00085337]
[1761032024762,0.52462106,108330.0,108320.0,0.11701337]
[1761032029551,0.52462106,108330.0,108320.0,0.30165147]
[1761032030798,0.52462106,108330.0,108320.0,0.11701337]
[1761032031389,0.52462106,108330.0,108320.0,0.00085337]
[1761032031579,0.52462106,108330.0,108320.0,0.11697337]
[1761032033116,0.52462106,108330.0,108320.0,0.30161147]
[1761032033909,0.52462106,108330.0,108320.0,0.11697337]
[1761032034978,0.52462106,108330.0,108320.0,0.00085337]
[1761032035152,0.52462106,108330.0,108320.0,0.11697337]
[1761032035806,0.52462106,108330.0,108320.0,0.30161147]
[1761032036701,0.34,108330.0,108320.0,0.30161147]
[1761032037796,0.34,108330.0,108320.0,0.11697337]
[1761032038234,0.52462106,108330.0,108320.0,0.11697337]
[1761032038389,0.34,108330.0,108320.0,0.11697337]
[1761032038800,0.52462106,108330.0,108320.0,0.11697337]
[1761032039072,0.52462106,108330.0,108320.0,0.30161147]
[1761032040545,0.34,108330.0,108320.0,0.30161147]
[1761032041373,0.01486953,108340.0,108330.0,0.18462106]
[1761032041577,0.01486953,108340.0,108320.0,0.35023798]
[1761032041749,0.01486953,108340.0,108330.0,0.18462106]
[1761032042184,0.19947355,108340.0,108320.0,0.44005441]
[1761032043035,0.19947355,108340.0,108320.0,0.3914279]
[1761032043467,0.19947355,108340.0,108320.0,0.39143048]
[1761032047413,0.19947355,108340.0,108320.0,0.39142992]
[1761032047834,0.53947355,108340.0,108330.0,0.11612]
[1761032049143,0.53947355,108340.0,108330.0,0.04712]
[1761032049144,0.34,108340.0,108330.0,0.04712]
[1761032049590,0.52460402,108340.0,108330.0,0.04712]
[1761032051450,0.52460402,108340.0,108330.0,0.23174106]
[1761032051666,0.34,108340.0,108330.0,0.30074106]
[1761032052923,0.41915067,108360.0,108340.0,0.18459439]
[1761032053122,0.42957103,108360.0,108340.0,0.18459439]
[1761032053390,0.34035227,108350.0,108340.0,0.18459439]
[1761032055919,0.00035227,108350.0,108340.0,0.2744134]
[1761032056327,0.00035227,108350.0,108340.0,0.2224134]
[1761032058397,0.00035227,108350.0,108340.0,0.26354062]
[1761032058803,0.00035227,108350.0,108340.0,0.70551191]
[1761032059208,0.00035227,108350.0,108340.0,0.2997229]
[1761032059412,0.00035227,108350.0,108340.0,0.32747548]
[1761032059727,0.00035227,108350.0,108340.0,0.2997229]
[1761032060544,0.00035227,108350.0,108340.0,0.3007229]
[1761032061140,0.00035227,108350.0,108340.0,0.28734826]
[1761032061340,0.00035227,108350.0,108340.0,0.2234134]
[1761032061585,0.18493925,108350.0,108340.0,0.001]
[1761032061730,0.00035227,108350.0,108340.0,0.30176402]
[1761032061953,0.18493925,108350.0,108340.0,0.11716]
[1761032062377,0.18493925,108350.0,108340.0,0.30176402]
[1761032062576,0.00035227,108350.0,108340.0,0.30176402]
[1761032063190,0.00035227,108350.0,108340.0,0.30076402]
[1761032063366,0.00035227,108350.0,108340.0,0.18460402]
[1761032063569,0.00035227,108350.0,108340.0,0.18560402]
[1761032063792,0.18493925,108350.0,108340.0,0.001]
[1761032064073,0.00035227,108350.0,108340.0,0.18560402]
[1761032066140,0.00035227,108350.0,108340.0,0.23424192]
[1761032066757,0.00035227,108350.0,108340.0,0.18560402]
[1761032071755,0.00035227,108350.0,108340.0,0.13560402]
[1761032072171,0.00035227,108350.0,108340.0,0.15406442]
[1761032073852,0.22104298,108360.0,108340.0,0.15406442]
[1761032074913,0.34,108370.0,108350.0,0.42669276]
[1761032075117,0.52455498,108370.0,108350.0,0.11612]
[1761032075329,0.52456995,108360.0,108350.0,0.11612]
[1761032075532,0.18457113,108360.0,108340.0,0.30071863]
[1761032075680,0.52457134,108360.0,108350.0,0.18458698]
[1761032075892,0.52457134,108360.0,108340.0,0.30071863]
[1761032076289,0.34,108360.0,108350.0,0.18458698]
[1761032076487,0.52456995,108360.0,108350.0,0.18458698]
[1761032077108,0.34,108360.0,108350.0,0.18458698]
[1761032078074,0.34,108360.0,108350.0,0.23311754]
[1761032078281,0.34,108360.0,108350.0,0.18458698]
[1761032078905,0.52456995,108360.0,108350.0,0.11558698]
[1761032079238,0.52456995,108360.0,108340.0,0.30071863]
[1761032079440,0.52456995,108360.0,108340.0,0.39053764]
[1761032080450,0.52492218,108360.0,108340.0,0.30087705]
[1761032080663,0.34035223,108360.0,108350.0,0.18458698]
[1761032080953,0.52492218,108360.0,108340.0,0.30087705]
[1761032082000,0.52492218,108360.0,108350.0,0.18458698]
[1761032082198,0.52492218,108360.0,108340.0,0.30087705]
[1761032085157,0.52492218,108360.0,108330.0,0.00109303]
[1761032085378,0.52460402,108340.0,108330.0,0.00109303]
[1761032087739,0.64088402,108340.0,108330.0,0.00109303]
[1761032096495,0.45628,108340.0,108330.0,0.00109303]
[1761032096614,0.64088402,108340.0,108330.0,0.00109303]
[1761032100905,0.64080402,108340.0,108330.0,0.00109303]
[1761032105796,0.18465667,108310.0,108290.0,0.18468768]
[1761032105997,0.18465667,108310.0,108270.0,0.1]
[1761032105998,0.18469025,108290.0,108270.0,0.1]
[1761032106208,0.53390581,108300.0,108270.0,0.18981901]
[1761032106410,0.53390581,108300.0,108280.0,0.20317579]
[1761032106612,0.53390581,108300.0,108280.0,0.18470516]
[1761032106808,0.53390581,108300.0,108270.0,0.50005571]
[1761032107202,0.53390581,108300.0,108280.0,0.20317553]
[1761032107364,0.18468964,108290.0,108270.0,0.53954056]
[1761032107568,0.18468964,108290.0,108280.0,0.20317694]
[1761032107774,0.18468964,108290.0,108280.0,0.18470631]
[1761032107974,0.18468964,108290.0,108270.0,0.50105571]
[1761032108552,0.18468964,108290.0,108270.0,0.50005571]
[1761032109195,0.18468964,108290.0,108280.0,0.01847063]
[1761032109373,0.18468964,108290.0,108270.0,0.50005571]
[1761032109942,0.18468964,108290.0,108270.0,0.31471652]
[1761032110068,0.52470631,108280.0,108270.0,0.10861751]
[1761032110668,0.52470631,108280.0,108270.0,0.1]
[1761032111321,0.52470631,108280.0,108270.0,0.10211541]
[1761032111971,0.52470631,108280.0,108270.0,0.10311541]
[1761032112556,0.52470631,108280.0,108270.0,0.28783878]
[1761032112979,0.52470631,108280.0,108270.0,0.10311541]
[1761032118276,0.52470631,108280.0,108270.0,0.10211541]
[1761032118860,0.64102631,108280.0,108270.0,0.10211541]
[1761032121481,0.52470631,108280.0,108270.0,0.10211541]
[1761032121614,0.64102631,108280.0,108270.0,0.10211541]
[1761032123036,0.64102631,108280.0,108270.0,0.03311541]
[1761032124591,0.63451973,108280.0,108270.0,0.03311541]
[1761032129493,0.25065476,108300.0,108270.0,0.21783878]
[1761032129695,0.34,108290.0,108280.0,0.18470631]
[1761032129879,0.45628,108290.0,108280.0,0.18470631]
[1761032130066,0.64096976,108290.0,108270.0,0.21572337]
[1761032130868,0.45628,108290.0,108280.0,0.18470631]
[1761032131064,0.45628,108290.0,108280.0,0.12270631]
[1761032133156,0.13080472,108300.0,108290.0,0.18468926]
[1761032133304,0.47080472,108300.0,108290.0,0.18468926]
[1761032133773,0.45632,108300.0,108290.0,0.18468926]
[1761032134202,0.6409922,108300.0,108280.0,0.12270631]
[1761032134516,0.34,108300.0,108290.0,0.18468926]
[1761032134731,0.45732,108300.0,108290.0,0.18468926]
[1761032135060,0.45732,108300.0,108290.0,0.18609927]
[1761032135448,0.6409922,108300.0,108290.0,0.18609927]
[1761032135650,0.6409922,108300.0,108290.0,0.00141001]
[1761032135845,0.6409922,108300.0,108290.0,0.18609927]
[1761032136051,0.34,108300.0,108290.0,0.18609927]
[1761032136297,0.45632,108300.0,108290.0,0.18609927]
[1761032136914,0.34,108300.0,108290.0,0.18609927]
[1761032137497,0.34009138,108310.0,108300.0,0.1846722]
[1761032137701,0.45645138,108310.0,108300.0,0.1846722]
[1761032138111,0.34009138,108310.0,108300.0,0.1256722]
[1761032138319,0.34009138,108310.0,108300.0,0.14413942]
[1761032138686,0.34009138,108310.0,108300.0,0.1256722]
[1761032138959,0.34109138,108310.0,108300.0,0.1256722]
[1761032140134,0.34109138,108310.0,108300.0,0.14413942]
[1761032140380,0.34109138,108310.0,108300.0,0.19764019]
[1761032140702,0.00109138,108310.0,108300.0,0.19764019]
[1761032141197,0.00109138,108310.0,108300.0,0.14413942]
[1761032141668,9.138e-05,108310.0,108300.0,0.14413942]
[1761032142276,9.138e-05,108310.0,108300.0,0.63965955]
[1761032142475,9.138e-05,108310.0,108300.0,0.65737461]
[1761032143033,9.138e-05,108310.0,108300.0,0.65843202]
[1761032145692,9.138e-05,108310.0,108300.0,0.2247309]
[1761032145896,9.138e-05,108310.0,108300.0,0.63043202]
[1761032146303,9.138e-05,108310.0,108300.0,0.2247309]
[1761032146935,9.138e-05,108310.0,108300.0,0.24711218]
[1761032147482,9.138e-05,108310.0,108300.0,0.2247309]
[1761032147690,9.138e-05,108310.0,108300.0,0.30204961]
[1761032149552,0.18474653,108310.0,108300.0,0.11737741]
[1761032149751,0.18474653,108310.0,108300.0,0.00105741]
[1761032149956,0.18474653,108310.0,108300.0,0.01952463]
[1761032150372,0.18474653,108310.0,108300.0,0.00105741]
[1761032150590,0.52474653,108310.0,108300.0,0.00105741]
[1761032152777,0.52474653,108310.0,108290.0,0.28806533]
[1761032152990,0.52474653,108310.0,108290.0,0.37788434]
[1761032155821,0.52474653,108310.0,108300.0,0.1846722]
[1761032156047,0.52474653,108310.0,108290.0,0.37788434]
[1761032159501,0.19390581,108300.0,108270.0,0.22495953]
[1761032159686,0.18468926,108290.0,108280.0,0.08981901]
[1761032159887,0.19390581,108300.0,108280.0,0.20617901]
[1761032160318,0.31026581,108300.0,108280.0,0.39088467]
[1761032160524,0.18468926,108290.0,108280.0,0.11636]
[1761032160733,0.18470631,108280.0,108270.0,0.031]
[1761032160935,0.18468926,108290.0,108270.0,0.16583233]
[1761032161135,3.0,108280.0,108270.0,0.3505556]
[1761032161394,3.18470631,108280.0,108270.0,0.14736]
[1761032161596,0.18470631,108280.0,108270.0,0.031]
[1761032161798,0.18470631,108280.0,108270.0,0.04947233]
[1761032162003,0.18470631,108280.0,108270.0,0.2341957]
[1761032162260,0.18470631,108280.0,108270.0,0.031]
[1761032162514,0.18470631,108280.0,108270.0,0.04947233]
[1761032163166,0.22164587,108280.0,108270.0,0.04947233]
[1761032163368,0.56164587,108280.0,108270.0,0.031]
[1761032164236,0.67800587,108280.0,108270.0,0.031]
[1761032167372,3.67800587,108280.0,108270.0,0.031]
[1761032167586,3.48765618,108280.0,108270.0,0.031]
[1761032167845,3.64106631,108280.0,108270.0,0.03205785]
[1761032168276,0.64106631,108280.0,108270.0,0.03205785]
[1761032168479,3.64106631,108280.0,108270.0,0.03205785]
[1761032169229,3.45648877,108280.0,108270.0,0.03205785]
[1761032169435,3.30206631,108280.0,108270.0,0.03205785]
[1761032170434,0.30206631,108280.0,108270.0,0.03205785]
[1761032174999,3.66804737,108280.0,108270.0,0.03205785]
[1761032175203,3.69376428,108280.0,108270.0,0.03205785]
[1761032175849,3.72154755,108280.0,108270.0,0.03205785]
[1761032176053,3.96654755,108280.0,108270.0,1e-08]
[1761032176301,3.97658754,108280.0,108270.0,1e-08]
[1761032176505,3.97558754,108280.0,108270.0,1e-08]
[1761032176713,3.97658754,108280.0,108270.0,1e-08]
[1761032177315,3.61518754,108280.0,108270.0,1e-08]
[1761032177774,3.77776981,108280.0,108270.0,1e-08]
[1761032178797,3.66136981,108280.0,108270.0,1e-08]
[1761032178988,3.77776981,108280.0,108270.0,1e-08]
[1761032179194,3.87768981,108280.0,108270.0,1e-08]
[1761032179635,3.87668981,108280.0,108270.0,1e-08]
[1761032179760,3.87868981,108280.0,108270.0,1e-08]
[1761032179963,0.18479164,108230.0,108210.0,0.18302468]
[1761032180184,0.34,108220.0,108210.0,0.191643]
[1761032180583,0.45644,108230.0,108220.0,0.18479518]
[1761032180788,0.34,108230.0,108220.0,0.18479518]
[1761032180957,0.45644,108230.0,108220.0,0.18479518]
[1761032181167,0.34,108230.0,108220.0,0.18488673]
[1761032181408,0.01449049,108250.0,108240.0,0.18477457]
[1761032181602,0.01449049,108250.0,108230.0,0.18477627]
[1761032181603,0.11644,108250.0,108230.0,0.18477627]
[1761032181778,0.18477834,108240.0,108220.0,0.27471465]
[1761032182054,0.18477834,108240.0,108220.0,0.27471845]
[1761032182226,0.52479164,108230.0,108220.0,9.155e-05]
[1761032183624,0.34,108230.0,108220.0,0.18490027]
[1761032184238,0.52479164,108230.0,108220.0,9.155e-05]
[1761032184630,0.34,108230.0,108220.0,0.20338114]
[1761032184806,0.01449037,108250.0,108230.0,0.18478547]
[1761032185045,0.45648,108240.0,108230.0,0.18478547]
[1761032185882,0.34,108240.0,108230.0,0.18478547]
[1761032186736,0.34,108240.0,108220.0,0.28395971]
[1761032186911,0.34,108240.0,108230.0,0.18479164]
[1761032187114,0.34,108240.0,108230.0,0.2032708]
[1761032187350,0.34,108240.0,108230.0,0.18479164]
[1761032191076,0.34,108240.0,108230.0,0.18620283]
[1761032192759,0.30127835,108250.0,108230.0,0.18620283]
[1761032192990,0.30127835,108250.0,108230.0,0.24345589]
[1761032193503,0.30127835,108250.0,108230.0,0.18479164]
[1761032193950,0.30227835,108250.0,108230.0,0.18479164]
[1761032197325,0.11752,108250.0,108230.0,0.18479164]
[1761032197534,0.45752,108250.0,108240.0,0.18477457]
[1761032197860,0.6422775,108250.0,108230.0,0.18479164]
[1761032198293,0.6422775,108250.0,108240.0,0.00105829]
[1761032199159,0.6412775,108250.0,108240.0,0.00105829]
[1761032199449,0.6422775,108250.0,108240.0,0.00105829]
[1761032200182,0.341,108250.0,108240.0,0.18583286]
[1761032200522,0.45752,108250.0,108240.0,0.18583286]
[1761032200718,0.001,108250.0,108240.0,0.22289531]
[1761032200951,0.001,108250.0,108240.0,0.18583286]
[1761032201529,0.301301,108260.0,108240.0,0.18583286]
[1761032201738,0.301301,108260.0,108240.0,0.18477457]
[1761032202198,0.301301,108260.0,108240.0,0.18477309]
[1761032206978,0.641301,108260.0,108250.0,0.00070546]
[1761032211991,0.641301,108260.0,108240.0,0.15547937]
[1761032212205,0.641301,108260.0,108240.0,0.18477457]
[1761032213324,0.1847575,108250.0,108240.0,0.18477457]
[1761032213539,0.1847575,108250.0,108230.0,0.31050545]
[1761032213756,0.1847575,108250.0,108230.0,0.40032446]
[1761032213968,0.641301,108260.0,108240.0,0.18477457]
[1761032215446,0.45128721,108260.0,108240.0,0.18477457]
[1761032216302,0.1847575,108250.0,108230.0,0.11648]
[1761032216504,0.1847575,108250.0,108230.0,0.18479115]
[1761032218631,0.1847575,108250.0,108230.0,0.18478904]
[1761032218838,0.5247575,108250.0,108240.0,0.0003528]
[1761032221120,3.5247575,108250.0,108240.0,0.0003528]
[1761032221468,3.59783885,108250.0,108240.0,0.0003528]
[1761032221673,3.5247575,108250.0,108240.0,0.0003528]
[1761032223131,0.5247575,108250.0,108240.0,0.0003528]
[1761032224171,0.52477993,108240.0,108220.0,0.17149269]
[1761032224390,0.52477993,108240.0,108220.0,0.18997356]
[1761032224664,0.34,108240.0,108230.0,0.18479164]
[1761032224856,0.34,108240.0,108230.0,0.18514448]
[1761032225936,0.18549895,108250.0,108240.0,0.18477457]
[1761032225937,0.00074145,108250.0,108240.0,0.18477457]
[1761032228545,0.00074145,108250.0,108240.0,0.27459358]
[1761032228812,0.00074145,108250.0,108240.0,0.6810139]
[1761032228961,0.00074145,108250.0,108240.0,0.73863571]
[1761032229848,0.00074145,108250.0,108240.0,0.6810139]
[1761032230054,0.00074145,108250.0,108240.0,0.71719618]
[1761032232602,0.00074145,108250.0,108240.0,1.1236165]
[1761032233226,0.00074145,108250.0,108240.0,1.1246165]
[1761032233878,0.00074145,108250.0,108240.0,0.31177586]
[1761032233998,0.00074145,108250.0,108240.0,0.77953621]
[1761032234432,0.19394215,108280.0,108260.0,0.18474043]
[1761032234631,0.19394215,108280.0,108260.0,0.39103944]
[1761032236124,0.19394215,108280.0,108260.0,0.33803944]
[1761032237579,0.18468944,108290.0,108260.0,0.33803944]
[1761032237779,0.18470684,108280.0,108260.0,0.42785845]
[1761032237980,0.19394215,108280.0,108260.0,0.42785845]
[1761032238444,0.19394215,108280.0,108260.0,0.33803944]
[1761032239524,0.18468944,108290.0,108270.0,0.18472265]
[1761032240602,0.43900381,108300.0,108280.0,0.18470631]
[1761032240778,0.43915231,108300.0,108280.0,0.18470631]
[1761032240987,0.00141046,108290.0,108280.0,0.18470631]
[1761032241187,0.00141046,108290.0,108280.0,0.22164921]
[1761032241396,0.00141046,108290.0,108280.0,0.18470631]
[1761032241599,0.00141046,108290.0,108280.0,0.30114631]
[1761032241803,0.00141046,108290.0,108280.0,0.39096532]
[1761032242838,0.00141046,108290.0,108280.0,0.79738564]
[1761032243244,0.00141046,108290.0,108280.0,0.39096532]
[1761032244275,0.00141046,108290.0,108280.0,0.4742376]
[1761032246111,0.00141046,108290.0,108280.0,0.88065792]
[1761032246314,0.00141046,108290.0,108280.0,0.4742376]
[1761032246516,0.00141046,108290.0,108280.0,0.39096532]
[1761032246692,0.00141046,108290.0,108280.0,0.38596532]
[1761032251998,0.18610092,108290.0,108280.0,0.1164]
[1761032252203,0.00141046,108290.0,108280.0,0.30110631]
[1761032252412,0.18609972,108290.0,108280.0,0.1164]
[1761032252990,0.52609972,108290.0,108280.0,0.1164]
[1761032253390,0.52609972,108290.0,108270.0,0.30112268]
[1761032253710,0.34,108290.0,108280.0,0.20317694]
[1761032253909,0.34,108290.0,108280.0,0.18470631]
[1761032254112,0.34141046,108290.0,108280.0,0.18470631]
[1761032254310,0.34141046,108290.0,108270.0,0.39094169]
[1761032254628,0.34,108290.0,108280.0,0.18470631]
[1761032255060,0.52468926,108290.0,108270.0,0.39094169]
[1761032255468,0.34,108290.0,108280.0,0.18470631]
[1761032256215,0.52469076,108290.0,108270.0,0.39094169]
[1761032256643,0.52469076,108290.0,108270.0,0.1164]
[1761032256644,0.18470631,108280.0,108270.0,0.1164]
[1761032256847,0.52469076,108290.0,108270.0,0.30111964]
[1761032257638,0.18469076,108290.0,108270.0,0.30111964]
[1761032258059,0.18469076,108290.0,108270.0,0.1164]
[1761032258060,0.18470631,108280.0,108270.0,0.1164]
[1761032258278,0.18469076,108290.0,108270.0,0.33047934]
[1761032259623,0.31045479,108300.0,108280.0,0.18470631]
[1761032260097,0.18468969,108290.0,108270.0,0.33047934]
[1761032260811,0.31045479,108300.0,108280.0,0.18470631]
[1761032261014,0.18468926,108290.0,108280.0,0.18470631]
[1761032261190,0.00141046,108290.0,108280.0,0.18470631]
[1761032262425,0.18609972,108290.0,108270.0,0.30108294]
[1761032262685,0.18609972,108290.0,108270.0,0.18472294]
[1761032262686,0.00105795,108280.0,108270.0,0.18472294]
[1761032270988,0.00105795,108280.0,108260.0,0.1939755]
[1761032271195,0.52470631,108280.0,108260.0,0.27455869]
[1761032272623,0.52470631,108280.0,108270.0,0.18472337]
[1761032272962,0.52470631,108280.0,108260.0,0.27455869]
[1761032273551,0.52470631,108280.0,108250.0,0.31033992]
[1761032273788,0.52470631,108280.0,108250.0,0.40015893]
[1761032273789,0.18472364,108270.0,108250.0,0.40015893]
[1761032273993,0.18474045,108260.0,108240.0,0.19475477]
[1761032274198,0.18472364,108270.0,108240.0,0.28457378]
[1761032274400,0.18472364,108270.0,108250.0,0.18475601]
[1761032274538,0.18472364,108270.0,108250.0,0.18475675]
[1761032275363,0.18472364,108270.0,108240.0,0.40089378]
[1761032275544,0.18472364,108270.0,108240.0,0.40104239]
[1761032275773,0.18472364,108270.0,108250.0,0.18475605]
[1761032276516,0.185429,108270.0,108250.0,0.18475605]
[1761032276730,0.18472364,108270.0,108250.0,0.18475605]
[1761032278319,0.18474043,108260.0,108240.0,0.40104239]
[1761032278538,0.18474043,108260.0,108240.0,0.30198371]
[1761032279069,0.18474043,108260.0,108240.0,0.30198153]
[1761032280388,0.30106043,108260.0,108240.0,0.30198153]
[1761032282069,0.30141314,108260.0,108240.0,0.30198153]
[1761032282436,0.18509314,108260.0,108240.0,0.30198153]
[1761032283735,0.18509314,108260.0,108240.0,0.00089009]
[1761032283931,0.6410775,108250.0,108240.0,0.00089009]
[1761032285444,0.6410775,108250.0,108230.0,0.16768051]
[1761032285769,0.45632,108250.0,108230.0,0.18615967]
[1761032285975,0.64111755,108250.0,108230.0,0.18615967]
[1761032288077,0.64116702,108250.0,108230.0,0.18615967]
[1761032288926,0.45640947,108250.0,108240.0,0.18477457]
[1761032289159,0.34004947,108250.0,108240.0,0.30113457]
[1761032292420,0.34004947,108250.0,108240.0,0.23613457]
[1761032295842,4.947e-05,108250.0,108240.0,0.23613457]
[1761032299626,4.947e-05,108250.0,108240.0,0.28349457]
[1761032302649,4.947e-05,108250.0,108240.0,0.87267554]
[1761032302851,4.947e-05,108250.0,108240.0,1.27897763]
[1761032303039,4.947e-05,108250.0,108240.0,0.90045106]
[1761032304450,4.947e-05,108250.0,108240.0,0.90145106]